Cogmind - Beta 15 @@@ ROGUE MODE // 2025.05.18 @ 12:45:13 Player: DuckBoy Result: Destroyed by G-50 Soldier with Heavy Laser Performance ------------- Evolutions (4) 2000 Regions Visited (6) 1200 Robots Destroyed (40) 200 Value Destroyed (1172) 1172 Prototype IDs (23) 460 Alien Tech Used (0) 0 Bonus (1751) 1751 TOTAL SCORE: 6783 Bonus ------- Follower Combat Kills 1036 Registered with UFD 300 Met Optimus in HQ 500 Friendly Fire -85 Cogmind --------- Core Integrity 0/850 Matter 299/300 Energy 100/100 System Corruption 1% Temperature Cool (9) Movement Treading (160) Location -6/Factory Parts ------- > --- POWER (1) -------- (None) > --- PROPULSION (4) --- Heavy Treads Overtuned Scrapsphere > --- UTILITY (6) ------ Large Storage Unit Hacking Suite Hacking Suite System Shield Makeshift System Shield > --- WEAPON (4) ------- Power Sword Enhanced Force Lance > --- INVENTORY (15) --- Scrap Suit Hardened Medium Armor Plating Damper Plating Dynamic Insulation System Dynamic Insulation System System Restoration Module Heavy Plasma Cannon Heavy Plasma Cannon Heavy Plasma Cannon Heavy Rocket Launcher Peak State ------------ > --- POWER ------------ Antimatter Reactor > --- PROPULSION ------- Heavy Treads Heavy Treads > --- UTILITY ---------- Scrap Suit Large Storage Unit Hacking Suite Makeshift System Shield Advanced System Shield > --- WEAPON ----------- Beamcaster Cooled Plasma Cannon Compact Ion Cannon Enhanced Force Lance > --- INVENTORY -------- Overtuned Scrapsphere Scrap Suit Advanced Transmission Jammer Hardened Medium Armor Plating Hardened Medium Armor Plating Damper Plating Dynamic Insulation System Dynamic Insulation System System Restoration Module Beamcaster Beamcaster [Rating: 85] Favorites ----------- Power Ion Engine Engine Ion Engine Power Core Neutrino Core Reactor Antimatter Reactor Propulsion Light Treads Treads Light Treads Leg Makeshift Leg Wheel Wheel Hover Unit Improved Airjet Utility Huge Storage Unit Device Scrap Suit Storage Huge Storage Unit Processor Improved Targeting Computer Hackware Hacking Suite Protection Weapon Shielding Weapon Grenade Launcher Energy Gun Beamcaster Energy Cannon Cooled Plasma Cannon Ballistic Gun Subdweller Machine Gun Ballistic Cannon Heavy Flak Cannon Launcher Grenade Launcher Special Weapon Remote Datajack Slashing Weapon Chainsword Piercing Weapon Enhanced Force Lance Build | -11 -10 -10 -9 -6 -6 -6 ------- Run | Yrd Mat Sub Scr Fac Was Fac Slots Evolved 8 | . . . . 8 . . Power . | . . . . . . . Propulsion 2 | . . . . 2 . . Utility 4 | . . . . 4 . . Weapon 2 | . . . . 2 . . Parts Attached 70 | 6 9 7 7 27 10 4 Power 5 | 1 . . 1 1 2 . Engine 2 | 1 . . 1 . . . Core 1 | . . . . . 1 . Reactor 2 | . . . . 1 1 . Propulsion 20 | 2 3 1 3 9 2 . Treads 10 | . 3 1 . 4 2 . Leg 1 | . . . 1 . . . Wheel 8 | 2 . . 2 4 . . Hover 1 | . . . . 1 . . Flight . | . . . . . . . Utility 22 | 1 4 2 3 9 1 2 Device 5 | . . . 2 3 . . Storage 5 | 1 2 . 1 . 1 . Processor 2 | . . . . 2 . . Hackware 5 | . . . . 3 . 2 Protection 5 | . 2 2 . 1 . . Artifact . | . . . . . . . Weapon 23 | 2 2 4 . 8 5 2 Energy Gun 7 | . . . . 3 4 . Energy Cannon 3 | . . 1 . 1 . 1 Ballistic Gun 5 | 2 . 2 . 1 . . Ballistic Cannon 1 | . . . . 1 . . Launcher 3 | . 2 1 . . . . Special Weapon 1 | . . . . 1 . . Impact Weapon . | . . . . . . . Slashing Weapon 2 | . . . . 1 . 1 Piercing Weapon 1 | . . . . . 1 . Special Melee Weapon . | . . . . . . . Unidentified Prototypes 6 | . . . . 3 2 1 Parts Lost 26 | . . 4 . 17 . 5 Power 2 | . . . . 1 . 1 Propulsion 8 | . . 1 . 6 . 1 Utility 5 | . . 1 . 3 . 1 Weapon 11 | . . 2 . 7 . 2 Highest Loss Streak 13 | . . 3 . 13 . 4 To Critical Strikes 1 | . . . . 1 . . Average Backups 20 | 1 15 21 26 17 9 10 Power 2 | . 2 3 3 1 . . Propulsion 7 | . 7 8 9 5 . . Utility 6 | . 2 3 8 8 6 6 Weapon 4 | . 3 5 4 1 1 3 Tool/Special . | . . . . . . . Unused Backups 35 | . . 1 3 13 4 14 Power 6 | . . . 2 3 1 . Propulsion 3 | . . . 1 2 . . Utility 17 | . . . . 7 2 8 Weapon 8 | . . 1 . . 1 6 Tool/Special 1 | . . . . 1 . . Average Slot Usage (%) 80 | . 97 99 68 68 69 80 Engine 10 | . 14 14 13 2 . . Treads 12 | . 27 28 1 2 8 12 Wheel 11 | . . . 25 17 2 . Device 1 | . . . 3 3 6 1 Storage 11 | . 14 14 13 3 5 6 Hackware 5 | . . . . 10 20 30 Protection 5 | . 11 14 1 4 . . Energy Gun 1 | . . . . 1 10 5 Energy Cannon 1 | . . 3 . 1 6 5 Ballistic Gun 6 | . 16 3 8 5 . . Launcher 6 | . 11 21 . . . . Peak Build Rating 85 | 6 8 16 18 54 84 85 Average Rating 24 | 4 7 10 16 40 66 77 On Entrance 24 | . 6 8 16 18 41 84 Naked Turns . | . . . . . . . Heaviest Build 231 | 14 92 97 207 231 66 66 Greatest Support 140 | 26 40 40 40 88 140 140 Greatest Overweight (x) 10 | . 2 4 9 10 6 3 Average Overweight (x) 3 | . 1 2 6 2 2 . Largest Inventory Capacity 35 | 8 25 25 35 35 15 15 Average Capacity 25 | 7 21 25 31 24 14 15 Most Carried 35 | 4 19 25 35 35 15 15 Average Carried 23 | 2 15 22 30 22 13 14 Final Capacity 35 | 8 25 25 35 5 15 15 Final Carried 32 | 4 19 25 32 4 15 14 Class Distribution -------------------- 48% | Mutant 31% | Hauler-Mutant 15% | Hacker-Mutant 3% | Hacker-Tank Dominant Class ---------------- Mutant | -10/Materials Mutant | -10/Subcaves Hauler-Mutant | -9/Scraptown Hauler-Mutant | -6/Factory Hacker-Tank | -6/Waste Hacker-Mutant | -6/Factory Resources | -11 -10 -10 -9 -6 -6 -6 ----------- Run | Yrd Mat Sub Scr Fac Was Fac Matter Collected 2091 | 203 621 193 268 602 130 74 Remotely . | . . . . . . . Salvage Created 1913 | . 466 69 . 838 470 70 Parts 95 | . 31 5 . 42 10 7 Haulers Intercepted 2 | . 2 . . . . . Recyclers Shooed 3 | . 2 . . . . 1 Parts Field Recycled . | . . . . . . . Retrieved Matter . | . . . . . . . Parts Self-Destructed 18 | . . 18 . . . . Prevented . | . . . . . . . Kills | -11 -10 -10 -9 -6 -6 -6 ------- Run | Yrd Mat Sub Scr Fac Was Fac Combat Hostiles Destroyed 29 | . 9 5 . 14 1 . Melee 2 | . . . . 2 . . Guns 14 | . 6 . . 8 . . Cannons 5 | . . . . 4 1 . AOE 8 | . 3 5 . . . . Classes Destroyed 12 | . 4 1 . 5 1 1 Worker 2 | . . . . 1 . 1 Builder 1 | . . . . . . 1 Hauler 2 | . 2 . . . . . Recycler 4 | . 2 . . 2 . . Operator 2 | . . . . 1 . 1 Swarmer 10 | . 5 . . 5 . . Grunt 7 | . 4 . . 3 . . Duelist 1 | . . . . 1 . . Sentry 2 | . . . . 2 . . Programmer 3 | . . . . 3 . . Compactor 1 | . . . . . 1 . Subdweller 5 | . . 5 . . . . Best Kill Streak 5 | . 3 3 . 5 1 1 Combat Bots Only 3 | . 3 3 . 3 1 . Max Kills in Single Turn 2 | . 2 1 . 1 1 1 Gunslinging . | . . . . . . . Exploded 2 | . 2 1 . . . . Melee 1 | . . . . 1 . . Uniques/NPCs Destroyed . | . . . . . . . Combat | -11 -10 -10 -9 -6 -6 -6 -------- Run | Yrd Mat Sub Scr Fac Was Fac Hostile Shots Fired 476 | . 52 31 . 315 . 78 Missed 162 | . 18 12 . 105 . 27 Hits 314 | . 34 19 . 210 . 51 Projectile 314 | . 34 19 . 210 . 51 AOE 6 | . . 4 . . . 2 Critical Strikes 7 | . . 1 . 3 . 3 Damage Taken 5218 | . 307 650 . 3161 . 1100 Core 985 | . 44 79 . 582 . 280 Absorbed by Shields . | . . . . . . . Redirected to Shielding 72 | . 9 63 . . . . Regen/Repaired (Parts) 227 | . 61 . . 166 . . Core Remaining (%) 75 | 100 . . 50 . . . Volleys Fired 162 | . 34 34 . 59 4 31 Largest 4 | . 2 2 . 4 3 2 Hottest 235 | . 60 80 . 235 179 110 Shots Fired 273 | . 68 43 . 118 9 35 Gun 161 | . 62 2 . 87 7 3 Cannon 81 | . . 17 . 30 2 32 Launcher 30 | . 6 24 . . . . Special 1 | . . . . 1 . . Kinetic 138 | . 62 2 . 73 1 . Thermal 93 | . . 17 . 33 8 35 Explosive 30 | . 6 24 . . . . Electromagnetic 11 | . . . . 11 . . Robot Hit Streak 20 | . 12 11 . 20 5 4 Robot Miss Streak 9 | . 5 . . 9 2 6 Penetration Max . | . . . . . . . Secondary Targets 2 | . . . . 2 . . Max Gunslinging Chain 1 | . . . . 1 . . Shots Hit Robots 149 | . 32 10 . 89 7 11 Core Hits 91 | . 22 8 . 52 5 4 Critical Kills 1 | . . . . 1 . . Critical Parts Destroyed 1 | . . . . 1 . . Critical Strikes 2 | . . . . 2 . . Destroy 2 | . . . . 2 . . Melee Attacks 13 | . . . . 8 . 5 Impact . | . . . . . . . Slashing 9 | . . . . 8 . 1 Piercing 4 | . . . . . . 4 Sneak Attacks 4 | . . . . 2 . 2 Combat Hostiles . | . . . . . . . Follow-up Attacks . | . . . . . . . Damage Inflicted 4146 | . 536 794 . 2098 174 544 Guns 1900 | . 435 . . 1292 130 43 Cannons 850 | . . . . 514 44 292 Explosions 895 | . 101 794 . . . . Melee 458 | . . . . 292 . 166 Ramming 43 | . . . . . . 43 Kinetic 1604 | . 435 . . 1156 13 . Thermal 1055 | . . . . 559 161 335 Explosive 895 | . 101 794 . . . . Electromagnetic 91 | . . . . 91 . . Impact . | . . . . . . . Slashing 292 | . . . . 292 . . Piercing 166 | . . . . . . 166 Highest Corruption 1 | . . . . 1 1 1 Average Corruption 1 | . . . . 1 1 1 Corruption Purged . | . . . . . . . Corruption Blocked . | . . . . . . . Effects 18 | . . . . 1 3 14 Message Errors 3 | . . . . . . 3 Matter Fused 5 | . . . . 1 . 4 Heat Flow Errors 3 | . . . . . 1 2 Energy Discharges 2 | . . . . . . 2 Data Loss (minor) 3 | . . . . . 1 2 Data Loss (major) 1 | . . . . . 1 . Misfires 1 | . . . . . . 1 Overload Shots 3 | . . . . 2 . 1 Overflow Damage 123 | . . . . 27 . 96 Projectiles 27 | . . . . 27 . . Explosions . | . . . . . . . Melee 96 | . . . . . . 96 Knockbacks 5 | . . . . 5 . . Impact . | . . . . . . . Kinetic 5 | . . . . 5 . . Secondary . | . . . . . . . Self-Inflicted Damage 79 | . . 79 . . . . Shots 6 | . . 6 . . . . Rammed 4 | . . . . . . 4 Targets Rammed 4 | . . . . . . 4 Kicked . | . . . . . . . Crushed . | . . . . . . . Highest Temperature 395 | . 5 . . 395 138 197 Average Temperature 108 | . 5 . . 142 38 47 Received Heat Transfer 1458 | . 84 60 . 945 . 369 Siege Activations . | . . . . . . . Martial Activations . | . . . . . . . Shielding Activations . | . . . . . . . Robots Disrupted . | . . . . . . . Combat Hostiles . | . . . . . . . Robots Corrupted . | . . . . . . . Combat Hostiles . | . . . . . . . Parts Fried . | . . . . . . . Impact Corruptions . | . . . . . . . Robots Melted . | . . . . . . . Combat Hostiles . | . . . . . . . Parts Melted 1 | . . . . . . 1 Heat Transferred 1877 | . . . . 1080 273 524 Parts Sabotaged . | . . . . . . . Parts Stolen . | . . . . . . . Parts Stripped . | . . . . . . . Power Chain Reactions . | . . . . . . . Alert | -11 -10 -10 -9 -6 -6 -6 ------- Run | Yrd Mat Sub Scr Fac Was Fac Maximum Alert Level 1 | . . . . 1 . 1 Low Security (%) 87 | 100 100 . . 79 100 75 Level 1 12 | . . . . 20 . 24 Level 2 . | . . . . . . . Level 3 . | . . . . . . . Level 4 . | . . . . . . . Level 5 . | . . . . . . . High Security . | . . . . . . . Max Security . | . . . . . . . Peak Influence 351 | . 86 . . 273 95 351 Initial 95 | . . . . . 95 . Average 68 | . 16 . . 107 19 121 Influence Increases 2085 | . 293 . . 992 . 800 Destroy 0b10 Robot/C 980 | . 180 . . 420 . 380 Destroy 0b10 Robot/NC 70 | . 20 . . 25 . 25 Destroy Leader 268 | . 34 . . 102 . 132 Allied During Kill 193 | . . . . 41 . 152 Successful Hack 94 | . 15 . . 33 . 46 Disable Machine 60 | . . . . 15 . 45 Destroy Structure 45 | . 14 . . 11 . 20 Lose Combat Pursuer 375 | . 30 . . 345 . . Influence Decreases 1851 | . 293 . . 719 273 566 Entered New Map 178 | . . . . . 178 . Time Decay 1263 | . 293 . . 459 95 416 Lost Part 220 | . . . . 170 . 50 Lost Ally 190 | . . . . 90 . 100 Squads Dispatched 17 | . 1 . . 7 . 9 Investigation 7 | . . . . 3 . 4 Extermination 5 | . . . . 3 . 2 Reinforcement 5 | . 1 . . 1 . 3 Assault . | . . . . . . . Garrison . | . . . . . . . Intercept . | . . . . . . . Searches Triggered . | . . . . . . . Construction Impeded 1 | . . . . . . 1 Haulers Reinforced . | . . . . . . . Active Scanning Responses . | . . . . . . . Cargo Convoy Interrupts 1 | . . . . . . 1 Stealth | -11 -10 -10 -9 -6 -6 -6 --------- Run | Yrd Mat Sub Scr Fac Was Fac Distress Signals 5 | . 1 . . 4 . . Communications Jammed . | . . . . . . . Distress Signals . | . . . . . . . Times Spotted 78 | . 9 6 . 47 1 15 Peak Tracking Total 11 | . 3 3 . 11 1 4 Tactical Retreats 12 | . 1 1 . 10 . . Traps | -11 -10 -10 -9 -6 -6 -6 ------- Run | Yrd Mat Sub Scr Fac Was Fac Traps Triggered 6 | . 1 . . 4 . 1 Indirectly . | . . . . . . . Trap Hack Attempts . | . . . . . . . Triggered . | . . . . . . . Disarmed . | . . . . . . . Reprogrammed . | . . . . . . . Reused . | . . . . . . . Traps Extracted . | . . . . . . . Installed . | . . . . . . . Triggered . | . . . . . . . Machines | -11 -10 -10 -9 -6 -6 -6 ---------- Run | Yrd Mat Sub Scr Fac Was Fac Machines Disabled 5 | . . 1 . 1 . 3 Max in Single Turn 2 | . . 1 . 1 . 2 Machines Repaired . | . . . . . . . Machines Dismantled . | . . . . . . . Machines Sabotaged . | . . . . . . . Overloaded Fab Kills . | . . . . . . . Hacking | -11 -10 -10 -9 -6 -6 -6 --------- Run | Yrd Mat Sub Scr Fac Was Fac Machines Accessed 34 | . 7 1 6 10 . 10 Terminals 17 | . 6 . . 6 . 5 Fabricators 2 | . . . . 1 . 1 Repair Stations 2 | . 1 . . 1 . . Recycling Units 4 | . . . . 1 . 3 Scanalyzers 2 | . . . . 1 . 1 Garrison Access . | . . . . . . . Total Hacks 156 | . 16 9 52 30 . 49 Successful 114 | . 8 9 52 18 . 27 Failed 40 | . 7 . . 12 . 21 Catastrophic 5 | . 1 . . 2 . 2 Database Lockouts 2 | . 1 . . . . 1 Manual 47 | . 8 . . 16 . 23 Terminals 63 | . 14 . . 17 . 32 Fabricators 5 | . . . . 3 . 2 Repair Stations 5 | . 2 . . 3 . . Recycling Units 10 | . . . . 3 . 7 Scanalyzers 12 | . . . . 4 . 8 Garrison Access . | . . . . . . . Terminal Hacks 85 | . 6 9 52 5 . 13 Record 60 | . . 8 52 . . . Part Schematic 3 | . . . . 1 . 2 Robot Schematic 4 | . 2 . . . . 2 Level Access Points 1 | . . . . . . 1 Branch Access Points 1 | . . . . 1 . . Machine Index 1 | . . . . . . 1 Terminal Index 1 | . . . . 1 . . Locate Traps 4 | . 1 . . 1 . 2 Dispatch Records 2 | . 1 . . . . 1 Patrol Status 1 | . 1 . . . . . Hauler Manifests 1 | . . . . . . 1 Registered Components 1 | . . . . . . 1 Zone Layout 4 | . 1 . . 1 . 2 Proto ID Catalog 1 | . . 1 . . . . Fabricator Hacks 3 | . . . . 2 . 1 Network Status 1 | . . . . . . 1 Load Schematic 1 | . . . . 1 . . Build 1 | . . . . 1 . . Repair Station Hacks 4 | . 2 . . 2 . . Scan Component 2 | . 1 . . 1 . . Repair 2 | . 1 . . 1 . . Recycling Unit Hacks 1 | . . . . . . 1 Retrieve Components 1 | . . . . . . 1 Scanalyzer 8 | . . . . 4 . 4 Insert Component 5 | . . . . 2 . 3 Analyze 3 | . . . . 2 . 1 Garrison Access Hacks . | . . . . . . . Unauthorized Hacks 13 | . . . . 5 . 8 Terminals 7 | . . . . 3 . 4 Track 1 | . . . . . . 1 Botnet 5 | . . . . 3 . 2 Operators 1 | . . . . . . 1 Fabricators 1 | . . . . . . 1 Liberate 1 | . . . . . . 1 Repair Stations 1 | . . . . 1 . . Mechanics 1 | . . . . 1 . . Recycling Units 4 | . . . . 1 . 3 Fedlink 2 | . . . . . . 2 Scrapoids 2 | . . . . 1 . 1 Scanalyzers . | . . . . . . . Garrison Access . | . . . . . . . Data Cores Recovered 2 | . . . . . . 2 Used 1 | . . . . . . 1 Hacking Detections 18 | . 5 . . 10 . 3 Full Trace Events 2 | . . . . 1 . 1 Feedback Events . | . . . . . . . Feedback Blocked . | . . . . . . . Robot Schematics Acquired 4 | . 2 . . . . 2 Robots Built . | . . . . . . . Authchips . | . . . . . . . Time . | . . . . . . . Total Robot Build Rating . | . . . . . . . Part Schematics Acquired 6 | . . . . 3 . 3 Parts Built 1 | . . . . 1 . . Authchips . | . . . . . . . Time 53 | . . . . 53 . . Total Part Build Rating 6 | . . . . 6 . . Parts Repaired 2 | . 1 . . 1 . . Time 70 | . 26 . . 44 . . Parts Recycled . | . . . . . . . Recycled Matter . | . . . . . . . Retrieved Matter . | . . . . . . . Retrieved Components 1 | . . . . . . 1 Parts Scanalyzed 3 | . . . . 2 . 1 Part Schematics Acquired 3 | . . . . 2 . 1 Parts Damaged 1 | . . . . . . 1 Bothacking | -11 -10 -10 -9 -6 -6 -6 ------------ Run | Yrd Mat Sub Scr Fac Was Fac Used RIF Installer . | . . . . . . . Robots Hacked 1 | . . . . 1 . . Non-combat . | . . . . . . . Combat . | . . . . . . . Robot Hacks Applied . | . . . . . . . Manual 1 | . . . . 1 . . Relay Couplers Released . | . . . . . . . Fabnet Peak Effective % . | . . . . . . . Robots Rewired . | . . . . . . . Allies Hacked . | . . . . . . . Hacks Repelled . | . . . . . . . Allies | -11 -10 -10 -9 -6 -6 -6 -------- Run | Yrd Mat Sub Scr Fac Was Fac Total Allies 13 | . . . . 7 1 5 Largest Group 6 | . . . . 5 1 6 Highest-Rated Group 175 | . . . . 140 28 175 Highest-Rated Ally 56 | . . . . 56 28 32 Total Orders 10 | . . . . . . 10 STAY 7 | . . . . . . 7 FOLLOW 3 | . . . . . . 3 Ally Attacks 203 | . . . . 63 4 136 Total Damage 3784 | . . . . 940 59 2785 Kills 29 | . . . . 8 . 21 Allies Corrupted . | . . . . . . . Allies Melted . | . . . . . . . Intel | -11 -10 -10 -9 -6 -6 -6 ------- Run | Yrd Mat Sub Scr Fac Was Fac Active Infowar (turns) 1171 | . . . 1171 . . . Optics 1171 | . . . 1171 . . . Structural 22 | . . . 22 . . . Robot Analysis Total . | . . . . . . . Derelict Logs Recovered 4 | . . 1 3 . . . Drone Launches . | . . . . . . . Drone Recoveries . | . . . . . . . Exploration | -11 -10 -10 -9 -6 -6 -6 ------------- Run | Yrd Mat Sub Scr Fac Was Fac Turns Passed 14272 | 53 2130 3076 5485 1498 516 1514 Spaces Moved 6672 | 44 740 923 2815 967 312 871 Core 185 | 2 . . 183 . . . Treads 2778 | . 740 923 91 16 148 860 Legs 8 | . . . 8 . . . Wheels 3701 | 42 . . 2533 951 164 11 Hover . | . . . . . . . Flight . | . . . . . . . Fastest Speed 50 | 50 160 320 50 70 90 100 Average Speed 198 | 87 263 320 190 118 136 159 Slowest Speed 480 | 90 320 480 420 320 160 160 Overloaded Moves . | . . . . . . . Propulsion Burnouts . | . . . . . . . Robots Hopped 1 | . . . . . . 1 Potential Cave-ins . | . . . . . . . Cave-ins Triggered . | . . . . . . . Exploration Rate (%) 56 | 4 97 58 96 25 97 18 Regions Visited 6 Branch Regions 2 Pre-discovered Areas 8 | . . 1 6 . . 1 Known Exits Taken . | . . . . . . . Unknown Exits Taken 4 | 1 1 1 1 . . . Scrap Searched 11 | . . 3 8 . . . Spaces Dug 14 | . . . . 3 . 11 Terrain Destroyed 112 | . 16 69 . 5 . 22 Melee 4 | . . . . 1 . 3 Projectile 23 | . . . . 4 . 19 AOE 85 | . 16 69 . . . . Terrain Rammed . | . . . . . . . Walls Destroyed . | . . . . . . . Machines Disabled . | . . . . . . . Actions | -11 -10 -10 -9 -6 -6 -6 --------- Run | Yrd Mat Sub Scr Fac Was Fac Total 7402 | 55 850 1001 2957 1192 394 953 Wait 288 | 2 44 27 71 75 43 26 Move 6665 | 43 739 922 2814 967 311 869 Hop 1 | . . . . . . 1 Pick Up 102 | 4 17 8 39 15 14 5 Fast Attach 38 | 6 4 2 4 12 7 3 Attach 25 | . 1 3 1 18 . 2 Detach 3 | . . . . 3 . . Swap 33 | . 7 3 6 14 3 . Drop 49 | . 4 2 22 5 9 7 Fire 162 | . 34 34 . 59 4 31 Melee 13 | . . . . 8 . 5 Ram . | . . . . . . . Kick . | . . . . . . . Crush 4 | . . . . . . 4 Escape Stasis 16 | . . . . 16 . . Rewire 3 | . . . . . 3 . Trap . | . . . . . . . Miscellaneous . | . . . . . . . Route ------- -11/Scrapyard -10/Materials (discovered 5 exits: [*Mat x3] / [*Min] / *Sub) -10/Subcaves -9/Scraptown (discovered 2 exits: *Fac x2) -6/Factory (discovered 3 exits: Fac / Low x2) -6/Waste -6/Factory (discovered 5 exits: *Fac x4 / Low) History --------- Turn | Location | Event 8 | -11/Scrapyard | Discovered new exit (range 15) 54 | -11/Scrapyard | Entered Materials 55 | -10/Materials | Met a group of wandering Federalists 107 | -10/Materials | Discovered new exit (range 13) 112 | -10/Materials | Central database locked down 207 | -10/Materials | Discovered new exit (range 8) 305 | -10/Materials | Build established: Mutant 425 | -10/Materials | Discovered new exit (range 16) 725 | -10/Materials | Discovered new exit (range 15) 1134 | -10/Materials | Repaired Assault Rifle 1611 | -10/Materials | Discovered new exit (range 16) 2184 | -10/Materials | Entered Subcaves 2185 | -10/Subcaves | Continued accompanying wandering Federalists (4) 2404 | -10/Subcaves | Ambushed by Subdweller buried in earth 2489 | -10/Subcaves | Learned location of Zion (-7) 2944 | -10/Subcaves | Shifting Twisted Machinery released Sub. Machine Gun 3007 | -10/Subcaves | Shifting Twisted Machinery released Mak. System Shield 3129 | -10/Subcaves | A swath of the cavern ceiling suddenly collapsed 3897 | -10/Subcaves | Shifting Twisted Machinery released Sub. Power Source 4158 | -10/Subcaves | Shifting Twisted Machinery released Mak. Leg 4287 | -10/Subcaves | Visited 4L-MR0's lab 4316 | -10/Subcaves | Found Cargo Legs 4740 | -10/Subcaves | Lost 3 parts (1u2w) 5260 | -10/Subcaves | Entered Scraptown 5766 | -9/Scraptown | Scanned Subdweller tech in exchange for log data 5775 | -9/Scraptown | Learned location of Warlord (-5) 5783 | -9/Scraptown | Learned location of Extension (-4) 5807 | -9/Scraptown | Discovered new exit (range 5) 5908 | -9/Scraptown | Visited Shadow of the Wyrm 5919 | -9/Scraptown | Visited Red Mages 6320 | -9/Scraptown | Visited Spacefarers 6442 | -9/Scraptown | Visited IN-MT5's Study 6588 | -9/Scraptown | Visited The Evicted 6636 | -9/Scraptown | Visited Bundlers 6743 | -9/Scraptown | Visited UFD Registry 6743 | -9/Scraptown | Registered with UFD as "Bladeskull" 6791 | -9/Scraptown | Visited Cartography Club 6894 | -9/Scraptown | Found Deep Structural Scanner 6901 | -9/Scraptown | Learned location of Recycling (-9) 6901 | -9/Scraptown | Learned location of Archives (-4) 6901 | -9/Scraptown | Learned 16 Factory zone layouts 6901 | -9/Scraptown | Learned 16 Research zone layouts 6901 | -9/Scraptown | Learned 4 Access zone layouts 6901 | -9/Scraptown | Learned 12 Lower Caves zone layouts 6901 | -9/Scraptown | Learned 8 Lower Caves zone layouts 6901 | -9/Scraptown | Learned 8 Upper Caves zone layouts 6901 | -9/Scraptown | Learned 8 Proximity Caves zone layouts 6901 | -9/Scraptown | Learned location of 1 exit from Upper Caves 6901 | -9/Scraptown | Learned location of 3 exits from Upper Caves 6901 | -9/Scraptown | Learned location of 1 exit from Proximity Caves 7059 | -9/Scraptown | Visited DA-N13 Charitable Foundation 7068 | -9/Scraptown | Found DCF Scrap (29 items) 7139 | -9/Scraptown | Visited Science Testing Area 7178 | -9/Scraptown | Visited Abandonware Association 7213 | -9/Scraptown | Learned abandonware demo "REPAIR.EXE" 7213 | -9/Scraptown | Learned abandonware demo "ERRANTS.EXE" 7229 | -9/Scraptown | Build established: Hauler-Mutant 7301 | -9/Scraptown | Visited Scrapoid Research Area 7365 | -9/Scraptown | Visited Derelict Rescue Squad 7383 | -9/Scraptown | Found DRS Beacon 7443 | -9/Scraptown | Visited Botcube Research 7452 | -9/Scraptown | Found Botcube 7774 | -9/Scraptown | Visited Infowarlord's Domain 7814 | -9/Scraptown | Visited Scrap Suit Storage 7889 | -9/Scraptown | Visited A0-MCA Data Center 7902 | -9/Scraptown | Given a C- rating by A0-MCA 8199 | -9/Scraptown | Found Scrap Suit 8203 | -9/Scraptown | Found Scrap Suit 8207 | -9/Scraptown | Found Scrap Suit 8730 | -9/Scraptown | Found Spectral Analyzer 10239 | -9/Scraptown | Discovered new exit (range 3) 10615 | -9/Scraptown | Met Optimus 10615 | -9/Scraptown | Accepted into 0bPrime 10745 | -9/Scraptown | Entered Factory 10745 | -6/Factory | Evolved 8 slots: Propulsion x2, Utility x4, Weapon x2 10746 | -6/Factory | Identified exit to Lower Caves 10747 | -6/Factory | Identified exit to Factory 10921 | -6/Factory | Scrapoids reinforcements arrived? 11472 | -6/Factory | Repaired Med. Treads 11730 | -6/Factory | Botcube activated 11747 | -6/Factory | Spotted B-75 Beast 11764 | -6/Factory | Lost 13 parts (5n3u5w) 11889 | -6/Factory | Core integrity fell below 50% 11968 | -6/Factory | Build established: Hacker-Mutant 12053 | -6/Factory | Fabricated Adv. System Shield (x1) 12243 | -6/Factory | Sucked down chute 12243 | -6/Factory | Entered Waste 12243 | -6/Waste | The area was eerily silent 12243 | -6/Waste | Met up with 1 ally sucked down the chute earlier 12274 | -6/Waste | Found Damper Plating 12343 | -6/Waste | A Compactor rumbled back to life 12343 | -6/Waste | Spotted C-40 Crusher 12348 | -6/Waste | Destroyed C-40 Crusher 12630 | -6/Waste | Build established: Hacker-Tank 12669 | -6/Waste | Discovered new exit (range 13) 12748 | -6/Waste | Found Damper Plating 12759 | -6/Waste | Entered Factory 12759 | -6/Factory | Accompanied by 1 ally 13074 | -6/Factory | Build established: Hacker-Mutant 13162 | -6/Factory | Scrapoids reinforcements arrived? 13575 | -6/Factory | Cargo convoy interrupted 13583 | -6/Factory | Central database locked down 13880 | -6/Factory | Loaded intel: 7 recycling unit locations 14095 | -6/Factory | Learned location of Protoforge (-2) 14169 | -6/Factory | Spotted B-75 Beast 14171 | -6/Factory | Core integrity fell below 20% 14273 | -6/Factory | Destroyed by G-50 Soldier with Heavy Laser Last Messages --------------- Ion Engine. 14170_ Fusion Modulator explodes. 14170_ Beamcaster destroyed. 14170_ 06F03-D destroyed. 14176_ 06F12-D destroyed. 14196_ MTBM:6CZR:1U>KNGAHVYUJZLXI6WQBJ EJPJFJ1 14198_ TF Node disabled. 14198_ Imp. Sensor Array tumbles out of TF Node. 14198_ Imp. Signal Interpreter tumbles out of TF Node. 14220_ Slammed into G-50 Soldier. 14222_ Antimatter Reactor destroyed. 14222_ Slammed into G-50 Soldier. 14225_ Critical hit (Burn: +37). 14235_ Slammed into K-01 Serf. 14237_ Adv. System Shield destroyed. 14237_ Cld. Plasma Cannon destroyed. 14242_ Critical hit (Burn: +37). 14254_ Hvy. Treads destroyed. 14256_ Acquired 9 matter. 14266_ Ovr. Scrapsphere suddenly begins malfunctioning. Map ----- +----------------------------------------------------+ | ???# """ #%#????????????????????????? | | ???# """ #%#????????????????????????? | | ???# !# #????????????????????????? | | ???##########%#????????????????????????? | | ???????????#" #????????????????????????? | | ???????????## #????????????????????????? | | ????????????# #?###########????????????? | | ????????????# #?# #????????????? | | ????????????# #?# #????????????? | | ????????????# #?# """ """ #????????????? | | ????????????#g#?# """ """ #????????????? | | ????????????#g#?# """ """ #????????????? | | ????????????#g### #????????????? | | ????????????# + ! #????????????? | | ????????????# # #?#??????????? | | ?????? ????# #####+############ #???? | | ??? "??# ^ ?? | | ????"" "" # % % ?? | | ????"" + % % ?? | | ????"" # ?? | | ??????? ?? # ??? | | ?????????" ?# ############### ??? | | ????????"" ?# #????????????????????? | | ????????""??# #??????###???????????? | | ???????? ??# #????? ???????????? | | ############# @ #???? ????????????? | | # # #??? ]?????????????? | | # # % %#?? ?????????????? | | # # #? """?????????????? | | # # #? """ ????????????? | | # # # """ ????????????? | | # # # "" ????????????? | | # """" # # "" ???????????? | | # """" + + #???????? | | # """" # % # #???????? | | # """ """" # # #???????? | | # "Y """" # ####+########????????? | | # """ """" # #?????????????? | | # # #?????????????? | | ############# #?????????????? | | ???????????#" #?????????????? | | ???????????## #?????????????? | | ????????????# "#######?????????????? | | ??#########?# % ########?????????????? | | ??# #% #? ?????????????? | | ??# # % # """ ""?????????????? | | ??# " % %# """ ""?????????????? | | ??# + ! + """ ""?????????????? | | ??# # # ?????????? | | ??# # % %# [ ???????? | +----------------------------------------------------+ Best States ------------- Heat Dissipation 56 Energy Generation 21 Energy Capacity 325 Matter Stores 300 Matter Capacity 300 Sight Range 21 Terrain Scan Density 10 Armor Coverage 250 Utility Shielding 33 Weapon Shielding 33 Evasion (%) 50 Targeting Accuracy 6 Recoil Reduction 4 Offensive Hacking 20 Defensive Hacking 35 Item Schematics ----------------- Adv. System Shield | -6/Factory | Hacked System Restoration Module | -6/Factory | Scanalyzed Lrg. Storage Unit | -6/Factory | Scanalyzed Adv. Transmission Jammer | -6/Factory | Scanalyzed Railgun | -6/Factory | Hacked Weapon Mount | -6/Factory | Hacked Robot Schematics ------------------ O-16 Technician | -10/Materials | Hacked M-13 Machinist | -10/Materials | Hacked I-36 Angel | -6/Factory | Hacked P-60 Hacker | -6/Factory | Hacked Fabricated ------------ Adv. System Shield | x1 | -6/Factory Repaired ---------- Assault Rifle | 39% | -10/Materials Med. Treads | 15% | -6/Factory Alien Tech Used ----------------- None Achievements -------------- None Challenges ------------ None Game ------ Seed InsulationSalvagingCorpse Manual? 0 Play Time 01:36:08 Cumulative 492.8 hours Start 2025.05.18 @ 10:50:29 End 2025.05.18 @ 12:45:13 Sessions 1 Manual Loads 0 Difficulty Rogue Special Mode None Game No. 313 Rogue 310 Adventurer 3 Explorer 0 Win Type - Total 8 Types 7/0/1/0/0/0/0/0/0/0 Lore% 74 Gallery% 71 Achievement% 67 Wizard Run 0 Options --------- Layout 0 ASCII 0 Keyboard 0 Movement Numpad Keybinds 0 Fullscreen 1 Font 18/SmallcapsGlow Map View 76x50 Zoom Use 0% Tactical HUD 1 Map Filters NONE Filters NONE Steam 1 RUN: 1744f572-93a0-4caa-a080-c5936eebd49f